bitfinex-derivatives/quotes_BTCF0:USTF0_20240817
["timestamp","ask_amount","ask_price","bid_price","bid_amount"]
[1723929148908,1.28361686,59421.0,59420.0,0.028]
[1723929151613,1.34671686,59421.0,59420.0,0.028]
[1723929161037,0.12621,59416.0,59415.0,0.00025233]
[1723929161235,0.74011,59416.0,59415.0,0.00025233]
[1723929161937,0.73711,59416.0,59415.0,0.00025233]
[1723929162440,0.73811,59416.0,59415.0,0.00325233]
[1723929162933,0.72811,59416.0,59415.0,0.00325233]
[1723929164339,0.72911,59416.0,59415.0,0.01225233]
[1723929165039,1.08991,59416.0,59415.0,0.01225233]
[1723929168145,0.36831,59416.0,59415.0,0.01225233]
[1723929168440,1.08991,59416.0,59415.0,0.01225233]
[1723929172042,0.36831,59416.0,59415.0,0.01225233]
[1723929172354,1.08991,59416.0,59415.0,0.01225233]
[1723929172639,0.36831,59416.0,59415.0,0.01225233]
[1723929173059,1.08991,59416.0,59415.0,0.01225233]
[1723929173843,0.36831,59416.0,59415.0,0.01225233]
[1723929174232,1.08991,59416.0,59415.0,0.01225233]
[1723929176752,0.36831,59416.0,59415.0,0.01225233]
[1723929177047,1.08991,59416.0,59415.0,0.01225233]
[1723929177848,0.36831,59416.0,59415.0,0.01225233]
[1723929178048,1.08991,59416.0,59415.0,0.01225233]
[1723929179141,0.36831,59416.0,59415.0,0.01225233]
[1723929179342,1.08991,59416.0,59415.0,0.01225233]
[1723929179849,0.36831,59416.0,59415.0,0.01225233]
[1723929180054,1.08991,59416.0,59415.0,0.01225233]
[1723929181453,1.08791,59416.0,59415.0,0.00025233]
[1723929183751,0.36631,59416.0,59415.0,0.00025233]
[1723929183946,1.08791,59416.0,59415.0,0.00025233]
[1723929189065,0.126216,59413.0,59412.0,0.0461]
[1723929189260,0.35943745,59413.0,59412.0,0.0461]
[1723929191457,0.36043745,59413.0,59412.0,0.0461]
[1723929191761,0.36143745,59413.0,59412.0,0.0461]
[1723929192462,0.23522145,59413.0,59402.0,0.0949]
[1723929192661,0.063118,59404.0,59403.0,0.0452]
[1723929192853,0.924718,59404.0,59403.0,0.0452]
[1723929194858,0.204118,59404.0,59403.0,0.0452]
[1723929195058,0.925718,59404.0,59403.0,0.0452]
[1723929195958,1.019818,59404.0,59403.0,0.0452]
[1723929197372,0.298218,59404.0,59403.0,0.0452]
[1723929197563,1.019818,59404.0,59403.0,0.0452]
[1723929198251,1.02987077,59404.0,59403.0,0.0452]
[1723929199666,0.93677077,59404.0,59403.0,0.0452]
[1723929199971,1.02987077,59404.0,59403.0,0.0452]
[1723929200869,0.30827077,59404.0,59403.0,0.0452]
[1723929201168,1.02987077,59404.0,59403.0,0.0452]
[1723929202070,0.30827077,59404.0,59403.0,0.0452]
[1723929202273,1.02987077,59404.0,59403.0,0.0452]
[1723929202470,0.30827077,59404.0,59403.0,0.0452]
[1723929202772,1.02987077,59404.0,59403.0,0.0452]
[1723929205164,0.30827077,59404.0,59403.0,0.0452]
[1723929205367,1.02987077,59404.0,59403.0,0.0452]
[1723929206068,0.30827077,59404.0,59403.0,0.0452]
[1723929206267,1.02987077,59404.0,59403.0,0.0452]
[1723929206975,0.30827077,59404.0,59403.0,0.0452]
[1723929207280,1.02987077,59404.0,59403.0,0.0452]
[1723929208166,0.30827077,59404.0,59403.0,0.0452]
[1723929208363,1.02987077,59404.0,59403.0,0.0452]
[1723929209273,0.30827077,59404.0,59403.0,0.0452]
[1723929209576,1.02987077,59404.0,59403.0,0.0452]
[1723929210382,0.30827077,59404.0,59403.0,0.0452]
[1723929210678,1.02987077,59404.0,59403.0,0.0452]
[1723929210879,0.30827077,59404.0,59403.0,0.0452]
[1723929211077,1.02987077,59404.0,59403.0,0.0452]
[1723929211979,0.30827077,59404.0,59403.0,0.0452]
[1723929212284,1.02987077,59404.0,59403.0,0.0452]
[1723929213981,0.30827077,59404.0,59403.0,0.0452]
[1723929214366,1.02987077,59404.0,59403.0,0.0452]
[1723929216175,0.30827077,59404.0,59403.0,0.0452]
[1723929216375,1.02987077,59404.0,59403.0,0.0452]
[1723929216576,0.30827077,59404.0,59403.0,0.0452]
[1723929216874,1.02987077,59404.0,59403.0,0.0452]
[1723929217173,0.30827077,59404.0,59403.0,0.0452]
[1723929217379,1.02987077,59404.0,59403.0,0.0452]
[1723929219397,0.30827077,59404.0,59403.0,0.0452]
[1723929219582,1.02987077,59404.0,59403.0,0.0452]
[1723929222995,0.30827077,59404.0,59403.0,0.0452]
[1723929223200,1.02987077,59404.0,59403.0,0.0452]
[1723929223787,0.30827077,59404.0,59403.0,0.0452]
[1723929223998,1.02987077,59404.0,59403.0,0.0452]
[1723929225497,1.02987077,59404.0,59392.0,0.06732996]
[1723929225498,0.063125,59397.0,59394.0,0.05052719]
[1723929225700,0.4539,59395.0,59394.0,0.05052852]
[1723929225893,0.4539,59395.0,59394.0,0.05052797]
[1723929226401,0.4539,59395.0,59393.0,0.05052797]
[1723929226791,0.4539,59395.0,59392.0,0.16265797]
[1723929227300,0.517028,59395.0,59392.0,0.16265797]
[1723929227496,0.063129,59394.0,59392.0,0.16265797]
[1723929228192,0.06313,59393.0,59392.0,0.11213]
[1723929228598,0.06313,59393.0,59392.0,0.61725]
[1723929229694,0.06413,59393.0,59392.0,0.61725]
[1723929229896,0.15723,59393.0,59392.0,0.11213]
[1723929230100,0.29823,59393.0,59392.0,0.11213]
[1723929230599,0.29823,59393.0,59392.0,0.049]
[1723929231191,0.30123,59393.0,59392.0,0.049]
[1723929231402,0.30423,59393.0,59392.0,0.049]
[1723929232103,0.30423,59393.0,59392.0,0.112131]
[1723929234800,0.66503,59393.0,59392.0,0.112131]
[1723929235493,0.063134,59389.0,59388.0,0.05068185]
[1723929235695,0.156234,59389.0,59388.0,0.00020496]
[1723929239307,0.517034,59389.0,59388.0,0.00020496]
[1723929241906,0.156234,59389.0,59388.0,0.00020496]
[1723929242097,0.517034,59389.0,59388.0,0.00020496]
[1723929243303,0.156234,59389.0,59388.0,0.00020496]
[1723929243504,0.517034,59389.0,59388.0,0.00020496]
[1723929243705,0.156234,59389.0,59388.0,0.00020496]
[1723929244211,0.517034,59389.0,59388.0,0.00020496]
[1723929244819,0.156234,59389.0,59388.0,0.00020496]
[1723929245012,0.517034,59389.0,59388.0,0.00020496]
[1723929245519,0.657034,59389.0,59388.0,0.00020496]
[1723929259520,0.296234,59389.0,59388.0,0.00020496]
[1723929259729,0.657034,59389.0,59388.0,0.00020496]
[1723929260318,0.563934,59389.0,59388.0,0.00020496]
[1723929260517,0.657034,59389.0,59388.0,0.00020496]
[1723929261223,0.657034,59389.0,59388.0,0.06333996]
[1723929262824,0.296234,59389.0,59388.0,0.06333996]
[1723929263021,0.657034,59389.0,59388.0,0.06333996]
[1723929263617,0.296234,59389.0,59388.0,0.06333996]
[1723929263927,0.657034,59389.0,59388.0,0.06333996]
[1723929267030,0.296234,59389.0,59388.0,0.06333996]
[1723929267230,0.657034,59389.0,59388.0,0.06333996]
[1723929270633,0.677034,59389.0,59388.0,0.06333996]
[1723929271432,0.687034,59389.0,59388.0,0.06333996]
[1723929273540,0.517034,59389.0,59388.0,0.06333996]
[1723929276555,0.517034,59389.0,59388.0,0.00020496]
[1723929277750,0.156234,59389.0,59388.0,0.00020496]
[1723929277955,0.517034,59389.0,59388.0,0.00020496]
[1723929279155,0.156234,59389.0,59388.0,0.00020496]
[1723929279353,0.517034,59389.0,59388.0,0.00020496]
[1723929279660,0.156234,59389.0,59388.0,0.00020496]
[1723929279861,0.517034,59389.0,59388.0,0.00020496]
[1723929280157,0.156234,59389.0,59388.0,0.00020496]
[1723929280361,0.517034,59389.0,59388.0,0.00020496]
[1723929281460,0.156234,59389.0,59388.0,0.00020496]
[1723929281661,0.517034,59389.0,59388.0,0.00020496]
[1723929285858,0.156234,59389.0,59388.0,0.00020496]
[1723929286060,0.517034,59389.0,59388.0,0.00020496]
[1723929286760,0.156234,59389.0,59388.0,0.00020496]
[1723929287158,0.517034,59389.0,59388.0,0.00020496]
[1723929287563,0.156234,59389.0,59388.0,0.00020496]
[1723929287771,0.517034,59389.0,59388.0,0.00020496]
[1723929291166,0.156234,59389.0,59388.0,0.00020496]
[1723929291369,0.517034,59389.0,59388.0,0.00020496]
[1723929291971,0.517034,59389.0,59388.0,0.05068185]
[1723929294064,0.156234,59389.0,59388.0,0.05068185]
[1723929294263,0.517034,59389.0,59388.0,0.05068185]
[1723929295874,0.156234,59389.0,59388.0,0.05068185]
[1723929296062,0.517034,59389.0,59388.0,0.05068185]
[1723929297861,0.156234,59389.0,59388.0,0.05068185]
[1723929298063,0.517034,59389.0,59388.0,0.05068185]
[1723929298859,0.156234,59389.0,59388.0,0.05068185]
[1723929299170,0.517034,59389.0,59388.0,0.05068185]
[1723929300275,0.3608,59389.0,59388.0,0.66159996]
[1723929300584,0.3608,59389.0,59388.0,1.16598928]
[1723929300765,0.3608,59389.0,59388.0,1.13571588]
[1723929301863,0.3608,59389.0,59388.0,1.06159996]
[1723929302169,0.3608,59389.0,59388.0,1.20303666]
[1723929304267,0.3608,59389.0,59388.0,1.13571219]
[1723929304474,0.3608,59389.0,59388.0,1.13571204]
[1723929305471,0.3608,59389.0,59388.0,1.098656]
[1723929305676,0.3608,59389.0,59388.0,1.06159996]
[1723929306178,0.3608,59389.0,59388.0,0.96849996]
[1723929306366,0.3608,59389.0,59388.0,1.06159996]
[1723929308279,0.156409,59393.0,59392.0,0.063131]
[1723929308483,0.517209,59393.0,59392.0,0.063131]
[1723929309675,0.521209,59393.0,59392.0,0.063131]
[1723929309885,0.428109,59393.0,59392.0,0.063131]
[1723929310683,0.432109,59393.0,59392.0,0.063131]
[1723929310874,0.432109,59393.0,59392.0,0.109831]
[1723929311376,0.432109,59393.0,59392.0,0.154931]
[1723929311572,0.063117,59405.0,59392.0,0.154931]
[1723929311573,0.68105293,59407.0,59396.0,0.063126]
[1723929311773,0.68105293,59407.0,59399.0,0.20668677]
[1723929311774,0.0931,59405.0,59399.0,0.20668677]
[1723929311974,0.0931,59402.0,59399.0,0.76042677]
[1723929312174,0.0931,59402.0,59399.0,0.709963]
[1723929312379,0.0931,59402.0,59399.0,0.616863]
[1723929312584,0.0931,59402.0,59399.0,0.111823]
[1723929315777,0.0931,59402.0,59399.0,0.113823]
[1723929316183,0.0931,59402.0,59399.0,0.12386647]
[1723929316492,0.0931,59402.0,59399.0,0.12186647]
[1723929316675,0.0931,59402.0,59399.0,0.12386647]
[1723929317479,0.00125233,59400.0,59399.0,0.12386647]
[1723929317987,0.00025233,59400.0,59399.0,0.12386647]
[1723929318189,0.00025233,59400.0,59399.0,0.12486647]
[1723929319088,0.00025233,59400.0,59399.0,0.12286647]
[1723929320285,0.00125233,59400.0,59399.0,0.12286647]
[1723929320487,0.00125233,59400.0,59399.0,0.78412947]
[1723929320878,0.00025233,59400.0,59399.0,0.78412947]
[1723929323794,0.00025233,59400.0,59399.0,0.27908947]
[1723929327380,0.00025233,59400.0,59399.0,0.12286647]
[1723929336091,0.00025233,59400.0,59399.0,0.1732809]
[1723929337191,0.00025233,59400.0,59399.0,0.12286647]
[1723929339097,0.00025233,59400.0,59399.0,0.19019094]
[1723929340299,0.00025233,59400.0,59399.0,0.12286647]
[1723929350807,0.15647433,59400.0,59399.0,0.001]
[1723929351016,0.51727433,59400.0,59399.0,0.001]
[1723929351205,0.51727433,59400.0,59399.0,0.05150781]
[1723929351509,0.51727433,59400.0,59399.0,0.001]
[1723929352905,0.52327433,59400.0,59399.0,0.001]
[1723929353301,0.063125,59397.0,59396.0,0.12346929]
[1723929353613,0.063125,59397.0,59396.0,0.07296148]
[1723929354204,0.063125,59397.0,59396.0,0.12344479]
[1723929354605,0.063125,59397.0,59396.0,0.07296148]
[1723929354919,0.066125,59397.0,59396.0,0.07296148]
[1723929355107,0.005,59397.0,59396.0,0.14032573]
[1723929355309,0.005,59397.0,59396.0,0.12156148]
[1723929355814,0.005,59397.0,59396.0,0.19566426]
[1723929356208,0.005,59397.0,59396.0,0.1956637]
[1723929356709,0.001,59397.0,59396.0,0.5564637]
[1723929357014,0.002,59397.0,59396.0,0.5564637]
[1723929357403,0.001,59397.0,59396.0,0.6195897]
[1723929357612,0.001,59397.0,59396.0,0.6225897]
[1723929357812,0.001,59397.0,59396.0,1.5276697]
[1723929358121,0.00025233,59400.0,59399.0,0.063123]
[1723929358306,0.00025233,59400.0,59399.0,0.23032522]
[1723929359816,0.00025233,59400.0,59399.0,0.29762475]
[1723929360010,0.00025233,59400.0,59399.0,0.29762401]
[1723929360219,0.00025233,59400.0,59399.0,0.3236959]
[1723929360435,0.00025233,59400.0,59399.0,0.36174627]
[1723929360716,0.00025233,59400.0,59399.0,0.28764553]
[1723929360918,0.00025233,59400.0,59399.0,0.36174627]
[1723929361218,0.00025233,59400.0,59399.0,0.29444674]
[1723929367513,0.00025233,59400.0,59399.0,0.25739637]
[1723929367719,0.00025233,59400.0,59399.0,0.29444318]
[1723929369323,0.00025233,59400.0,59399.0,0.19427159]
[1723929369620,0.00025233,59400.0,59399.0,0.25739459]
[1723929370010,0.00025233,59400.0,59399.0,0.29444374]
[1723929372213,0.00025233,59400.0,59399.0,0.220346]
[1723929372418,0.00025233,59400.0,59399.0,0.2944443]
[1723929373927,0.00025233,59400.0,59399.0,0.2013443]
[1723929374314,0.00025233,59400.0,59399.0,0.2944443]
[1723929377414,0.00025233,59400.0,59399.0,0.220346]
[1723929377616,0.00025233,59400.0,59399.0,0.29444428]
[1723929380037,0.00025233,59400.0,59399.0,0.29444362]
[1723929384136,0.00025233,59400.0,59399.0,0.50684373]
[1723929385227,0.00025233,59400.0,59399.0,0.50683605]
[1723929386235,0.00025233,59400.0,59399.0,0.42268128]
[1723929388535,0.00025233,59400.0,59399.0,0.42267929]
[1723929391325,0.00025233,59400.0,59399.0,0.42267948]
[1723929396833,0.00025233,59400.0,59399.0,0.42267976]
[1723929401237,0.00025233,59400.0,59399.0,0.13821692]
[1723929401628,0.09965233,59400.0,59399.0,0.16851537]
[1723929402239,0.16277433,59400.0,59399.0,0.16851537]
[1723929402746,0.16277433,59400.0,59399.0,0.10116996]
[1723929403343,0.16477433,59400.0,59399.0,0.10116996]
[1723929404437,0.16477433,59400.0,59399.0,0.10016996]
[1723929404438,0.16677433,59400.0,59399.0,0.10016996]
[1723929404938,0.16677433,59400.0,59399.0,0.1001743]
[1723929405339,0.16777433,59400.0,59399.0,0.063123]
[1723929406544,0.16577433,59400.0,59399.0,0.063123]
[1723929406740,0.16977433,59400.0,59399.0,0.063123]
[1723929408942,0.16977433,59400.0,59399.0,0.156223]
[1723929425447,0.11987433,59400.0,59399.0,0.156223]
[1723929425853,0.07037433,59400.0,59399.0,0.156223]
[1723929426558,0.07037433,59400.0,59399.0,0.22356841]
[1723929427254,0.07037433,59400.0,59399.0,0.156223]
[1723929428255,0.07037433,59400.0,59399.0,0.22356841]
[1723929430361,0.07037433,59400.0,59399.0,0.156223]
[1723929431060,0.07037433,59400.0,59399.0,0.22356712]
[1723929431270,0.07037433,59400.0,59399.0,0.156223]
[1723929435856,0.07037433,59400.0,59399.0,0.063123]
[1723929440076,0.07037433,59400.0,59399.0,0.13048176]
[1723929445085,0.07037433,59400.0,59399.0,0.063123]
[1723929447680,0.07037433,59400.0,59399.0,0.1304804]
[1723929447880,0.07037433,59400.0,59399.0,0.063123]
[1723929449982,0.07037433,59400.0,59399.0,0.13048049]
[1723929452201,0.07037433,59400.0,59399.0,0.063123]
[1723929452595,0.07037433,59400.0,59399.0,0.10017425]
[1723929452896,0.07037433,59400.0,59399.0,0.20458271]
[1723929456398,1.18853633,59400.0,59399.0,0.06492334]
[1723929456599,0.063124,59398.0,59397.0,0.05051696]
[1723929456798,0.80769233,59400.0,59396.0,0.05051696]
[1723929456799,0.063125,59397.0,59396.0,0.05051696]
[1723929457004,0.063126,59396.0,59395.0,0.063127]
[1723929457300,0.063126,59396.0,59395.0,0.10018102]
[1723929457789,0.063126,59396.0,59395.0,0.15067821]
[1723929458599,0.063126,59396.0,59395.0,0.063127]
[1723929459409,0.067126,59396.0,59395.0,0.10018102]
[1723929459704,0.067126,59396.0,59395.0,0.063127]
[1723929460494,0.072126,59396.0,59395.0,0.063127]
[1723929461313,0.072126,59396.0,59395.0,0.20672419]
[1723929461494,0.072126,59396.0,59395.0,0.156227]
[1723929461697,0.072126,59396.0,59395.0,0.20672419]
[1723929461897,0.072126,59396.0,59395.0,0.156227]
[1723929462105,0.072126,59396.0,59394.0,0.05049719]
[1723929462106,0.063128,59395.0,59394.0,0.05049719]
[1723929462409,0.06313,59393.0,59392.0,0.11362819]
[1723929462712,0.06313,59393.0,59392.0,0.15068271]
[1723929462895,0.06313,59393.0,59392.0,0.11362819]
[1723929463508,0.06313,59393.0,59392.0,0.063131]
[1723929464300,0.06413,59393.0,59392.0,0.063131]
[1723929467401,0.06513,59393.0,59392.0,0.063131]
[1723929467905,0.06513,59393.0,59392.0,0.11362819]
[1723929470408,0.06513,59393.0,59392.0,0.063131]
[1723929471301,0.06513,59393.0,59392.0,0.11362819]
[1723929471612,0.06513,59393.0,59392.0,0.063131]
[1723929471807,0.06513,59393.0,59392.0,0.11362819]
[1723929471999,0.06513,59393.0,59392.0,0.063131]
[1723929478109,0.063131,59392.0,59391.0,0.01018648]
[1723929478312,0.063131,59392.0,59388.0,0.06333896]
[1723929478313,0.002,59393.0,59388.0,0.11383615]
[1723929478505,0.0931,59390.0,59388.0,0.11383615]
[1723929478701,0.063134,59389.0,59388.0,0.11383615]
[1723929479505,0.063134,59389.0,59388.0,0.06333896]
[1723929480112,0.064134,59389.0,59388.0,0.12370178]
[1723929480515,0.064134,59389.0,59388.0,0.12670178]
[1723929484212,0.064134,59389.0,59388.0,0.07620459]
[1723929492918,0.064134,59389.0,59388.0,0.1806194]
[1723929494228,0.064134,59389.0,59388.0,0.11326191]
[1723929496138,0.064134,59389.0,59388.0,0.18059956]
[1723929496522,0.064134,59389.0,59388.0,0.11326191]
[1723929497740,0.064134,59389.0,59388.0,0.11746668]
[1723929499454,0.064134,59389.0,59388.0,0.01307059]
[1723929501733,0.064134,59389.0,59388.0,0.06358112]
[1723929505325,0.064134,59389.0,59388.0,0.01307059]
[1723929508030,0.064134,59389.0,59388.0,0.07620559]
[1723929510442,0.064134,59389.0,59388.0,0.14354436]
[1723929510743,0.064134,59389.0,59388.0,0.21765952]
[1723929512347,0.064134,59389.0,59388.0,0.15032075]
[1723929513336,0.064134,59389.0,59388.0,0.21765952]
[1723929516748,0.064134,59389.0,59388.0,0.18060194]
[1723929516945,0.064134,59389.0,59388.0,0.21765952]
[1723929518242,0.157234,59389.0,59388.0,0.21765952]
[1723929519147,0.157234,59389.0,59388.0,0.15032075]
[1723929519457,0.157234,59389.0,59388.0,0.21765952]
[1723929520345,0.157234,59389.0,59388.0,0.21765991]
[1723929521041,0.157234,59389.0,59388.0,0.15032114]
[1723929522848,0.157234,59389.0,59388.0,0.10339793]
[1723929527747,0.157234,59389.0,59388.0,0.06633996]
[1723929527952,0.157234,59389.0,59388.0,0.10339862]
[1723929528349,0.157234,59389.0,59388.0,0.06633996]
[1723929528549,0.157234,59389.0,59388.0,0.10339862]
[1723929529259,0.157234,59389.0,59388.0,0.06633996]
[1723929530157,1.275528,59389.0,59388.0,0.04026362]
[1723929530349,1.275528,59389.0,59388.0,0.00320496]
[1723929530350,1.338662,59389.0,59388.0,0.00320496]
[1723929530548,1.275528,59389.0,59388.0,0.00320496]
[1723929530950,1.338662,59389.0,59388.0,0.00320496]
[1723929534164,2.060262,59389.0,59388.0,0.00320496]
[1723929534356,1.338662,59389.0,59388.0,0.00320496]
[1723929534559,2.060262,59389.0,59388.0,0.00320496]
[1723929535857,1.338662,59389.0,59388.0,0.00320496]
[1723929536053,2.060262,59389.0,59388.0,0.00320496]
[1723929538163,1.555102,59389.0,59388.0,0.00320496]
[1723929538366,2.060262,59389.0,59388.0,0.00320496]
[1723929543662,0.126304,59372.0,59371.0,0.047]
[1723929543860,0.487104,59372.0,59371.0,0.047]
[1723929544476,0.48725931,59372.0,59371.0,0.047]
[1723929544974,0.48825931,59372.0,59371.0,0.047]
[1723929546260,0.48925931,59372.0,59371.0,0.047]
[1723929546573,0.63925931,59372.0,59371.0,0.047]
[1723929547563,0.63825931,59372.0,59371.0,0.047]
[1723929547763,0.63925931,59372.0,59371.0,0.047]
[1723929549273,0.63925931,59372.0,59361.0,0.0941]
[1723929549274,0.063163,59362.0,59361.0,0.0941]
[1723929549479,0.156263,59362.0,59361.0,0.157264]
[1723929550366,0.157263,59362.0,59361.0,0.157264]
[1723929550768,0.158263,59362.0,59361.0,0.157264]
[1723929557182,0.158263,59362.0,59361.0,0.0941]
[1723929558775,0.221426,59362.0,59361.0,0.0941]
[1723929560878,0.284589,59362.0,59361.0,0.0941]
[1723929561585,0.189495,59360.0,59359.0,0.0484]
[1723929562283,0.18968759,59360.0,59359.0,0.0484]
[1723929563185,0.19068759,59360.0,59359.0,0.0484]
[1723929563481,0.19068759,59360.0,59350.0,0.10473422]
[1723929563482,0.063174,59351.0,59350.0,0.10473422]
[1723929563683,0.219448,59351.0,59350.0,0.0948]
[1723929564773,0.220448,59351.0,59350.0,0.1411]
[1723929565284,0.221448,59351.0,59350.0,0.1411]
[1723929565671,0.221448,59351.0,59350.0,0.0463]
[1723929566282,0.158274,59351.0,59350.0,0.0463]
[1723929566680,0.157274,59351.0,59350.0,0.0463]
[1723929566995,0.158274,59351.0,59350.0,0.0463]
[1723929567181,0.157274,59351.0,59350.0,0.0463]
[1723929567378,0.158274,59351.0,59350.0,0.0463]
[1723929572278,0.063181,59345.0,59344.0,0.01018615]
[1723929572472,0.063182,59344.0,59343.0,0.156882]
[1723929572671,0.063182,59344.0,59343.0,0.0937]
[1723929573384,0.063184,59342.0,59341.0,0.0002059]
[1723929573679,0.156284,59342.0,59341.0,0.0002059]
[1723929575687,0.157284,59342.0,59341.0,0.0002059]
[1723929576078,0.158284,59342.0,59341.0,0.0002059]
[1723929576677,0.0951,59342.0,59341.0,0.0633909]
[1723929580698,0.002,59342.0,59341.0,0.0633909]
[1723929580990,0.0951,59342.0,59341.0,0.0633909]
[1723929586187,0.002,59342.0,59341.0,0.1564909]
[1723929586397,0.002,59342.0,59341.0,1.0620509]
[1723929586598,0.002,59342.0,59341.0,1.1252359]
[1723929587491,0.00014508,59351.0,59350.0,0.063175]
[1723929587697,0.00014508,59351.0,59350.0,0.156275]
[1723929588002,0.00014508,59351.0,59350.0,0.063175]
[1723929588789,0.00114508,59351.0,59350.0,0.063175]
[1723929589399,0.00214508,59351.0,59350.0,0.063175]
[1723929590208,0.00214508,59351.0,59350.0,0.07308537]
[1723929612416,0.00214508,59351.0,59350.0,0.12349293]
[1723929615413,0.00214508,59351.0,59350.0,0.07308537]
[1723929617523,0.00214508,59351.0,59350.0,0.14031594]
[1723929622719,0.00214508,59351.0,59350.0,0.07308537]
[1723929624208,0.00214508,59351.0,59350.0,0.14031594]
[1723929625410,0.00214508,59351.0,59350.0,0.11016759]
[1723929629420,0.06531908,59351.0,59350.0,0.11016759]
[1723929630326,0.06531908,59351.0,59350.0,0.1472498]
[1723929631824,0.06531908,59351.0,59350.0,0.07308537]
[1723929639229,0.06531908,59351.0,59350.0,0.14724981]
[1723929641235,0.06531908,59351.0,59350.0,0.11016759]
[1723929641430,0.06531908,59351.0,59350.0,0.14724981]
[1723929642232,0.06531908,59351.0,59350.0,0.2146741]
[1723929644729,0.06531908,59351.0,59350.0,0.17759188]
[1723929645129,0.06531908,59351.0,59350.0,0.2146741]
[1723929645539,0.06531908,59351.0,59350.0,0.14724981]
[1723929645934,0.06531908,59351.0,59350.0,0.11016759]
[1723929647043,0.06531908,59351.0,59350.0,0.2146741]
[1723929648446,0.06531908,59351.0,59350.0,0.14724981]
[1723929648947,0.06531908,59351.0,59350.0,0.03708222]
[1723929649143,0.063176,59349.0,59348.0,0.06742429]
[1723929649442,0.063176,59349.0,59348.0,0.03708382]
[1723929650348,0.064176,59349.0,59348.0,0.03808382]
[1723929650546,0.065176,59349.0,59348.0,0.03808382]
[1723929652145,0.065176,59349.0,59348.0,0.001]
[1723929654253,0.065176,59349.0,59348.0,0.03808366]
[1723929656446,0.065176,59349.0,59348.0,0.001]
[1723929660842,0.065176,59349.0,59348.0,0.064178]
[1723929662245,0.065176,59349.0,59348.0,0.10126128]
[1723929662645,0.065176,59349.0,59348.0,0.064178]
[1723929662957,0.065176,59349.0,59348.0,0.10126128]
[1723929664141,0.065176,59349.0,59348.0,0.064178]
[1723929665255,0.065176,59349.0,59348.0,0.10126115]
[1723929665654,0.065176,59349.0,59348.0,0.064178]
[1723929669156,0.065176,59349.0,59348.0,0.52948544]
[1723929669351,0.065176,59349.0,59348.0,0.52945382]
[1723929669554,0.065176,59349.0,59348.0,0.46206115]
[1723929670058,0.065176,59349.0,59348.0,0.16865357]
[1723929674363,0.065176,59349.0,59348.0,0.10126115]
[1723929674552,0.065176,59349.0,59348.0,0.16865357]
[1723929675157,0.065176,59349.0,59348.0,0.10126115]
[1723929676164,0.065176,59349.0,59348.0,0.064178]
[1723929676553,0.065176,59349.0,59348.0,0.10126115]
[1723929677059,0.065176,59349.0,59348.0,0.064178]
[1723929677966,0.065176,59349.0,59348.0,0.13157042]
[1723929678162,0.065176,59349.0,59348.0,0.064178]
[1723929678358,0.065176,59349.0,59348.0,0.16865372]
[1723929678663,0.065176,59349.0,59348.0,0.13834417]
[1723929679457,0.065176,59349.0,59348.0,0.2057443]
[1723929679858,0.065176,59349.0,59348.0,0.20574372]
[1723929680165,0.065176,59349.0,59348.0,0.20574442]
[1723929680466,0.065176,59349.0,59348.0,0.20574322]
[1723929680666,0.065176,59349.0,59348.0,0.064178]
[1723929680967,0.065176,59349.0,59348.0,0.1383431]
[1723929689866,0.002,59349.0,59348.0,0.1383431]
[1723929691973,0.002,59349.0,59348.0,0.13834293]
[1723929693272,0.002,59349.0,59348.0,0.10126055]
[1723929693473,0.002,59349.0,59348.0,0.13834293]
[1723929693874,0.002,59349.0,59348.0,0.10126038]
[1723929694879,0.002,59349.0,59348.0,0.13834276]
[1723929696775,0.002,59349.0,59348.0,0.13834273]
[1723929697380,0.002,59349.0,59348.0,0.064178]
[1723929697570,0.002,59349.0,59348.0,0.13834276]
[1723929701985,0.002,59349.0,59348.0,0.064178]
[1723929702167,0.002,59349.0,59348.0,0.13834276]
[1723929705587,0.002,59349.0,59348.0,0.13834278]
[1723929708988,0.002,59349.0,59343.0,0.063183]
[1723929708989,1.88218,59349.0,59328.0,0.10114593]
[1723929709188,1.88218,59349.0,59332.0,0.01459027]
[1723929709189,0.063194,59333.0,59332.0,0.01459027]
[1723929709391,0.063195,59332.0,59307.0,0.3608]
[1723929709605,0.063195,59332.0,59279.0,0.02532]
[1723929709606,0.12645,59303.0,59302.0,0.05049425]
[1723929709890,0.12645,59303.0,59282.0,0.2336308]
[1723929709891,0.126474,59292.0,59291.0,3.4e-07]
[1723929710189,0.126474,59292.0,59282.0,0.1009885]
[1723929710190,0.063247,59283.0,59282.0,0.1009885]
[1723929710376,0.09080639,59283.0,59281.0,0.08415745]
[1723929710577,0.12044058,59282.0,59281.0,0.07556745]
[1723929710788,0.02734058,59282.0,59281.0,0.07556745]
[1723929711091,0.063249,59281.0,59280.0,0.15633777]
[1723929711287,0.09059508,59281.0,59280.0,0.15633777]
[1723929711590,0.063252,59278.0,59265.0,0.1401]
[1723929711784,0.7216,59266.0,59265.0,0.69337258]
[1723929712109,0.7216,59266.0,59265.0,0.047]
[1723929712110,0.72176865,59266.0,59265.0,0.047]
[1723929712679,0.72176865,59266.0,59265.0,1.1101608]
[1723929713290,0.72376865,59266.0,59265.0,1.1101608]
[1723929722301,0.72376865,59266.0,59265.0,0.047]
[1723929722498,0.72276865,59266.0,59265.0,0.047]
[1723929722685,0.72376865,59266.0,59265.0,0.047]
[1723929725293,0.063268,59263.0,59261.0,0.0483]
[1723929725606,0.213268,59263.0,59261.0,0.0483]
[1723929725897,0.72552865,59266.0,59252.0,0.06328]
[1723929726096,0.7216,59253.0,59252.0,0.70965258]
[1723929726498,0.7216,59253.0,59252.0,1.1264408]
[1723929727194,0.7216,59253.0,59252.0,0.48006822]
[1723929727401,0.7226,59253.0,59252.0,0.48006822]
[1723929727601,0.7236,59253.0,59252.0,0.48006822]
[1723929727900,0.7236,59253.0,59252.0,0.41678822]
[1723929729693,0.7226,59253.0,59252.0,0.41678822]
[1723929729894,0.786879,59253.0,59252.0,0.41678822]
[1723929730205,0.786879,59253.0,59251.0,0.04839927]
[1723929730397,0.00017624,59252.0,59251.0,0.04839927]
[1723929731302,0.36079973,59247.0,59225.0,0.00088]
[1723929731508,0.3608,59226.0,59225.0,0.71976272]